bitfinex/quotes_SOLUSD_20260119
["timestamp","ask_amount","ask_price","bid_price","bid_amount"]
[1768839995856,4.82183738,133.8,133.77,1.76796158]
[1768839997244,1.81768227,133.8,133.77,1.76796158]
[1768839998935,1.81768227,133.8,133.77,1.73796158]
[1768840002438,9.29154204,133.8,133.77,1.73796158]
[1768840006461,1.81768227,133.8,133.77,1.73796158]
[1768840012354,9.29156267,133.8,133.77,1.73796158]
[1768840012963,1.81768227,133.8,133.77,1.73796158]
[1768840016344,7.47348816,133.81,133.78,1.84349765]
[1768840016550,1.83425952,133.83,133.8,1.84349765]
[1768840016868,1.83425952,133.83,133.8,1.81349765]
[1768840017674,1.83425952,133.82,133.8,1.81349765]
[1768840021167,1.93425952,133.84,133.81,1.81210081]
[1768840021458,1.93425952,133.84,133.81,4.81625592]
[1768840021772,9.40535365,133.85,133.82,1.71183926]
[1768840022066,1.83425952,133.84,133.81,18.07183926]
[1768840025674,1.83425952,133.84,133.81,28.54911842]
[1768840025853,1.83425952,133.84,133.82,1.71082278]
[1768840026052,1.93425952,133.87,133.81,42.51633158]
[1768840026381,1.93425952,133.87,133.84,4.61497789]
[1768840026573,1.93425952,133.87,133.84,20.97497789]
[1768840026874,0.1,133.87,133.85,4.61474484]
[1768840027265,0.1,133.87,133.86,4.61474484]
[1768840028582,0.1,133.87,133.86,12.08523639]
[1768840029259,0.1,133.87,133.86,9.08108128]
[1768840029459,0.1,133.87,133.86,12.08523639]
[1768840030682,0.1,133.87,133.86,4.61474484]
[1768840032280,0.1,133.87,133.86,1.61058973]
[1768840032585,0.1,133.87,133.86,4.61474484]
[1768840032989,0.1,133.87,133.86,12.08523639]
[1768840034089,0.1,133.87,133.86,4.61474484]
[1768840034290,0.1,133.88,133.86,4.61474484]
[1768840034587,1.93425952,133.88,133.86,4.61474484]
[1768840037382,1.93425952,133.88,133.86,12.08494469]
[1768840037591,1.93425952,133.88,133.86,4.61474484]
[1768840040275,1.93425952,133.88,133.86,3.00415511]
[1768840043083,1.93425952,133.88,133.85,9.07872127]
[1768840043290,1.93425952,133.88,133.86,3.00415511]
[1768840044096,1.93425952,133.88,133.85,9.07872127]
[1768840044298,1.93425952,133.88,133.86,3.00415511]
[1768840044979,1.93425952,133.88,133.86,3.00054088]
[1768840047399,1.93425952,133.88,133.85,9.07872127]
[1768840047703,1.93425952,133.88,133.86,3.00054088]
[1768840048799,1.93425952,133.88,133.85,12.07926215]
[1768840049601,1.93425952,133.88,133.86,3.00054088]
[1768840049804,0.1,133.88,133.86,4.60668763]
[1768840052792,1.99466816,133.88,133.86,4.60668763]
[1768840053289,1.99466816,133.88,133.86,1.60614675]
[1768840053509,1.99466816,133.88,133.86,4.60668763]
[1768840054187,1.99466816,133.88,133.86,12.07709976]
[1768840054805,1.99466816,133.88,133.86,9.07655888]
[1768840055005,1.99466816,133.88,133.86,12.07709976]
[1768840056792,1.99466816,133.88,133.86,9.07655888]
[1768840057105,1.99466816,133.88,133.86,4.60668763]
[1768840059706,1.99466816,133.88,133.85,7.47079274]
[1768840059914,1.99466816,133.88,133.85,12.0757606]
[1768840060610,1.99466816,133.88,133.86,3.00054088]
[1768840060815,1.99466816,133.88,133.85,9.07521972]
[1768840061105,1.99466816,133.88,133.86,3.00054088]
[1768840062219,1.8299948,133.9,133.87,17.96399466]
[1768840062396,1.8299948,133.9,133.86,1.60399466]
[1768840062397,1.7299948,133.89,133.86,1.60399466]
[1768840062596,1.7299948,133.88,133.86,1.60399466]
[1768840062800,1.7299948,133.88,133.85,12.07550024]
[1768840063530,1.7299948,133.88,133.86,3.00054088]
[1768840064527,1.7299948,133.88,133.85,12.07550024]
[1768840065249,1.7299948,133.88,133.85,4.60453554]
[1768840065517,1.7299948,133.88,133.85,1.60399466]
[1768840067001,1.7299948,133.87,133.84,23.83139721]
[1768840067209,1.7299948,133.87,133.84,28.43524469]
[1768840076119,1.66999481,133.87,133.84,28.43524469]
[1768840078656,9.31083611,133.89,133.84,26.83193809]
[1768840078861,1.84175887,133.89,133.86,3.00054088]
[1768840080160,1.84175887,133.89,133.85,9.13247797]
[1768840080463,1.84175887,133.89,133.85,12.13301885]
[1768840081174,1.84175887,133.86,133.84,77.86]
[1768840081360,1.84175887,133.87,133.84,89.99332388]
[1768840081543,1.84175887,133.87,133.85,1.66146558]
[1768840082268,10.46963322,133.89,133.85,12.13303912]
[1768840082269,1.84175887,133.88,133.85,12.13303912]
[1768840082637,1.84175887,133.88,133.85,4.66200646]
[1768840083950,1.84175887,133.87,133.84,77.86]
[1768840084344,1.84175887,133.87,133.84,79.52112205]
[1768840084759,1.84175887,133.87,133.84,18.02112205]
[1768840085062,1.84175887,133.87,133.84,16.36]
[1768840085463,1.84175887,133.87,133.84,23.8315784]
[1768840085959,1.84175887,133.87,133.84,25.49247796]
[1768840086267,1.84175887,133.86,133.84,16.36]
[1768840086447,1.84175887,133.86,133.83,66.16144044]
[1768840086448,1.78175888,133.86,133.83,1.66089956]
[1768840086651,10.47265889,133.84,133.79,1.72089955]
[1768840086851,3.00054088,133.83,133.8,16.36]
[1768840088474,1.84175887,133.82,133.8,16.36]
[1768840090673,1.84175887,133.82,133.8,18.0804697]
[1768840093080,1.84175887,133.82,133.8,16.36]
[1768840094280,1.84175887,133.82,133.8,18.08016932]
[1768840095593,4.84229975,133.83,133.8,18.08016932]
[1768840095954,1.84175887,133.83,133.8,18.08016932]
[1768840096156,4.84229975,133.83,133.8,18.08016932]
[1768840098759,1.84175887,133.82,133.8,16.36]
[1768840098958,4.84229975,133.83,133.8,18.07985741]
[1768840100486,1.84175887,133.83,133.8,18.07985741]
[1768840100781,4.84229975,133.83,133.8,18.07985741]
[1768840102880,1.76885094,133.82,133.8,16.36]
[1768840103174,1.70885095,133.82,133.8,16.36]
[1768840103767,1.70885095,133.82,133.8,18.13956299]
[1768840105383,4.77259156,133.83,133.8,18.13956299]
[1768840105583,1.76885094,133.82,133.8,18.13956299]
[1768840105783,1.70885095,133.82,133.8,18.13956299]
[1768840106285,3.00374062,133.83,133.8,18.13956299]
[1768840106478,3.00374062,133.83,133.8,16.36]
[1768840106673,3.00374062,133.83,133.8,18.19939433]
[1768840107381,3.00374062,133.83,133.8,16.36]
[1768840107573,10.47597532,133.83,133.8,18.19933939]
[1768840107880,1.76885094,133.81,133.8,16.36]
[1768840111689,4.77259156,133.82,133.8,16.36]
[1768840113288,1.76885094,133.82,133.8,16.36]
[1768840113488,1.76885094,133.82,133.8,18.19908783]
[1768840113687,9.24074318,133.84,133.81,1.83908783]
[1768840113895,4.77259156,133.84,133.81,1.83908783]
[1768840114191,1.76885094,133.84,133.81,1.83908783]
[1768840115064,9.24046808,133.84,133.81,1.83908783]
[1768840116789,9.23998245,133.85,133.82,1.83898448]
[1768840118490,1.76885094,133.84,133.82,1.83898448]
[1768840121199,3.00374062,133.87,133.83,16.36]
[1768840121397,1.90166093,133.87,133.84,1.83205968]
[1768840123005,9.37164567,133.87,133.84,1.83205968]
[1768840124105,1.90166093,133.87,133.84,1.83205968]
[1768840126404,1.90166093,133.87,133.84,9.30355571]
[1768840126905,1.90166093,133.87,133.84,1.83205968]
[1768840127400,1.90166093,133.86,133.83,28.66769567]
[1768840127986,1.90166093,133.87,133.84,1.83205968]
[1768840132495,1.90166093,133.86,133.83,82.6958003]
[1768840134608,1.90166093,133.86,133.83,21.1958003]
[1768840137625,1.90166093,133.86,133.83,18.19205968]
[1768840140604,1.83259782,133.85,133.83,16.36]
[1768840141207,1.83259782,133.83,133.8,61.5]
[1768840141406,1.83259782,133.83,133.81,16.36]
[1768840143229,1.83259782,133.82,133.81,16.36]
[1768840144233,1.83259782,133.82,133.79,87.17229861]
[1768840144408,1.83259782,133.82,133.79,77.86]
[1768840145210,1.83259782,133.81,133.79,77.86]
[1768840145414,4.83633844,133.81,133.79,16.36]
[1768840145617,1.77259783,133.8,133.79,16.36]
[1768840145931,1.77259783,133.8,133.77,1.83810231]
[1768840145932,1.77259783,133.8,133.77,18.19810231]
[1768840146326,1.71259784,133.8,133.77,18.19810231]
[1768840151052,9.18645727,133.8,133.77,18.19810231]
[1768840151431,1.71259784,133.8,133.77,18.19810231]
[1768840153522,9.30699799,133.79,133.75,1.88943411]
[1768840153728,4.83633844,133.79,133.76,18.24943411]
[1768840155436,1.83259782,133.78,133.76,18.24943411]
[1768840159154,9.24757234,133.78,133.76,1.88943411]
[1768840159445,1.77259783,133.78,133.76,1.88943411]
[1768840161952,1.77259783,133.78,133.75,18.24943411]
[1768840162739,1.77259783,133.78,133.76,1.77796865]
[1768840162943,1.82175907,133.79,133.76,1.77796865]
[1768840163142,4.82549969,133.79,133.76,1.77796865]
[1768840163448,1.82175907,133.78,133.76,1.77796865]
[1768840163639,1.76175908,133.78,133.76,1.77796865]
[1768840165126,1.76175908,133.78,133.75,18.13796865]
[1768840165937,1.70175909,133.78,133.75,18.13796865]
[1768840166443,1.6417591,133.78,133.75,18.13796865]
[1768840166624,3.00552718,133.78,133.75,18.13796865]
[1768840167026,3.00552718,133.78,133.75,16.36]
[1768840167749,3.00552718,133.78,133.74,9.25499196]
[1768840168230,1.82175907,133.77,133.74,9.25499196]
[1768840168745,1.82175907,133.77,133.74,1.77796865]
[1768840170345,1.82175907,133.77,133.74,12.26067487]
[1768840171148,1.82175907,133.78,133.75,1.77796865]
[1768840172651,1.82175907,133.78,133.76,16.38]
[1768840172951,1.76175908,133.78,133.76,16.38]
[1768840173825,10.48070697,133.78,133.76,16.38]
[1768840174967,12.30246604,133.78,133.76,16.38]
[1768840176364,9.29693886,133.78,133.76,16.38]
[1768840177234,1.82175907,133.78,133.76,16.38]
[1768840181262,1.82175907,133.78,133.76,18.14488375]
[1768840183453,1.76175908,133.78,133.76,18.14488375]
[1768840183760,3.00552718,133.82,133.78,1.76488375]
[1768840183937,3.00552718,133.82,133.78,4.77041093]
[1768840184137,10.47769336,133.83,133.78,4.77041093]
[1768840184359,3.00552718,133.82,133.78,1.76488375]
[1768840185484,1.85010285,133.81,133.78,1.76488375]
[1768840188185,12.32894045,133.81,133.78,1.76488375]
[1768840188365,1.85010285,133.8,133.77,4.77041093]
[1768840189075,1.85010285,133.8,133.77,1.76488375]
[1768840190488,1.85010285,133.8,133.77,9.24039589]
[1768840195092,1.85010285,133.8,133.77,1.76488375]
[1768840195285,1.85010285,133.8,133.76,61.5]
[1768840195286,1.85379393,133.78,133.76,61.5]
[1768840195483,1.85379393,133.77,133.74,79.68380305]
[1768840195687,1.79379394,133.76,133.74,16.38]
[1768840195882,3.00552718,133.75,133.72,2.00380305]
[1768840196074,3.00552718,133.76,133.72,18.38380305]
[1768840196773,10.48165291,133.76,133.72,18.38380305]
[1768840196980,3.00552718,133.76,133.72,25.86206571]
[1768840197790,1.85379393,133.75,133.72,25.86206571]
[1768840199491,1.85379393,133.75,133.72,28.86759289]
[1768840199794,1.79379394,133.75,133.72,28.86759289]
[1768840200490,1.79379394,133.75,133.72,21.38933023]
[1768840201397,1.79379394,133.75,133.72,28.86709851]
[1768840201582,7.47556737,133.77,133.73,1.80380305]
[1768840201782,7.47556737,133.77,133.72,16.58]
[1768840201783,3.00552718,133.74,133.72,16.58]
[1768840202085,3.00552718,133.73,133.71,0.2]
[1768840202277,2.94552719,133.73,133.71,16.58]
[1768840202477,2.94552719,133.73,133.71,0.2]
[1768840202696,3.00552718,133.72,133.71,0.2]
[1768840202997,3.00552718,133.73,133.71,0.2]
[1768840204010,1.85379393,133.72,133.71,0.2]
[1768840204482,4.85932111,133.74,133.71,2.00380305]
[1768840204794,3.00552718,133.74,133.71,2.00380305]
[1768840205000,1.85379393,133.73,133.71,0.2]
[1768840206680,1.85379393,133.74,133.72,1.80380305]
[1768840206892,4.85932111,133.76,133.72,21.18933023]
[1768840207075,1.85379393,133.76,133.72,21.18933023]
[1768840207279,1.85379393,133.75,133.72,21.18933023]
[1768840207497,1.85379393,133.75,133.72,18.18380305]
[1768840207872,1.85379393,133.74,133.72,16.38]
[1768840208076,1.85379393,133.73,133.72,16.38]
[1768840209608,1.85379393,133.72,133.71,0.2]
[1768840211779,4.85932111,133.72,133.71,0.2]
[1768840212182,1.85379393,133.71,133.7,16.58]
[1768840213291,1.85379393,133.72,133.7,16.58]
[1768840213492,1.79379394,133.72,133.7,16.58]
[1768840213804,10.48301457,133.74,133.7,18.38380305]
[1768840214498,7.47748739,133.74,133.7,18.38380305]
[1768840214698,10.48301457,133.74,133.7,18.38380305]
[1768840214899,3.00552718,133.75,133.71,1.80380305]
[1768840215199,10.48182728,133.76,133.72,1.80380305]
[1768840215402,1.85379393,133.75,133.72,1.80380305]
[1768840215790,1.79379394,133.75,133.72,1.80380305]
[1768840215990,4.79932112,133.75,133.72,1.80380305]
[1768840216205,1.79379394,133.75,133.72,1.80380305]
[1768840216613,4.79932112,133.75,133.72,1.80380305]
[1768840217105,4.79932112,133.75,133.72,9.28206371]
[1768840217297,4.79932112,133.75,133.72,1.80380305]
[1768840217490,3.00552718,133.75,133.72,1.80380305]
[1768840217693,1.85379393,133.74,133.72,1.80380305]
[1768840217894,1.79379394,133.74,133.72,1.80380305]
[1768840219984,4.79932112,133.74,133.71,1.80380305]
[1768840220315,1.85379393,133.73,133.7,78.08]
[1768840220490,4.85932111,133.72,133.7,16.58]
[1768840221081,4.85932111,133.72,133.7,0.2]
[1768840222295,1.85379393,133.72,133.7,0.2]
[1768840223915,4.85932111,133.72,133.7,0.2]
[1768840224208,1.79379394,133.72,133.7,0.2]
[1768840224791,10.48356013,133.73,133.7,2.07583559]
[1768840224991,10.48356013,133.73,133.7,0.2]
[1768840225411,10.48356013,133.73,133.7,2.07583559]
[1768840225788,10.482896,133.74,133.7,2.07583559]
[1768840225992,7.47736882,133.74,133.7,2.07583559]
[1768840226208,9.31816571,133.74,133.71,1.87583559]
[1768840226511,9.31816571,133.74,133.71,18.25583559]
[1768840226888,12.32485005,133.75,133.72,1.87583559]
[1768840227199,1.84079689,133.75,133.72,1.87583559]
[1768840228213,1.84079689,133.74,133.71,25.73450129]
[1768840228392,1.7807969,133.74,133.71,25.73450129]
[1768840234398,1.72079691,133.74,133.71,25.73450129]
[1768840236307,1.72079691,133.74,133.71,28.74173422]
[1768840238517,1.84079689,133.77,133.74,1.87583559]
[1768840239613,7.47567244,133.77,133.74,1.87583559]
[1768840239907,1.84079689,133.76,133.74,1.87583559]
[1768840240721,7.47567244,133.77,133.74,1.87583559]
[1768840240722,1.78255719,133.77,133.74,1.87583559]
[1768840241015,1.78255719,133.77,133.74,4.88306852]
[1768840241215,1.78255719,133.77,133.74,1.87583559]
[1768840241720,9.25823718,133.77,133.74,1.87583559]
[1768840243018,1.78255719,133.76,133.74,1.87583559]
[1768840243898,12.26547011,133.77,133.74,1.87583559]
[1768840244097,9.25823718,133.77,133.74,1.87583559]
[1768840244504,9.25823718,133.77,133.74,18.25583559]
[1768840245107,9.25823718,133.77,133.74,21.26306852]
[1768840245928,1.78255719,133.77,133.74,21.26306852]
[1768840246226,1.78255719,133.77,133.75,4.76723035]
[1768840247412,1.78255719,133.77,133.75,3.00723293]
[1768840247720,1.78255719,133.77,133.74,21.14723035]
[1768840253009,1.78255719,133.77,133.74,28.62438524]
[1768840253519,1.82970678,133.78,133.76,4.76337793]
[1768840253726,1.82970678,133.8,133.77,4.76337793]
[1768840254041,1.82970678,133.8,133.77,21.14337793]
[1768840256531,1.82970678,133.8,133.77,18.136145]
[1768840256726,9.30363146,133.8,133.77,21.14337793]
[1768840258139,9.30363146,133.8,133.77,18.136145]
[1768840258931,1.82970678,133.79,133.77,18.136145]
[1768840261027,7.47392468,133.8,133.78,1.756145]
[1768840261433,9.30363146,133.8,133.77,21.14337793]
[1768840262941,9.30363146,133.8,133.77,18.136145]
[1768840263142,9.30363146,133.8,133.77,21.14337793]
[1768840264019,9.30363146,133.8,133.77,18.136145]
[1768840264233,7.47392468,133.8,133.77,18.136145]
[1768840264437,1.82970678,133.79,133.77,16.38]
[1768840270564,1.82970678,133.79,133.77,18.136145]
[1768840272969,1.82970678,133.78,133.77,16.38]
[1768840273260,1.82970678,133.77,133.72,4.76337793]
[1768840273463,1.82970678,133.75,133.72,1.756145]
[1768840273655,1.82970678,133.73,133.7,1.956145]
[1768840274260,12.3142505,133.74,133.7,4.96337793]
[1768840275169,12.3142505,133.74,133.7,1.956145]
[1768840275368,12.3142505,133.74,133.7,9.43539889]
[1768840275863,3.00723293,133.73,133.7,9.43539889]
[1768840276064,2.94723294,133.73,133.7,9.43539889]
[1768840276654,1.82970678,133.72,133.7,0.2]
[1768840276858,12.25477553,133.73,133.7,1.956145]
[1768840278372,4.77693972,133.73,133.7,9.43553986]
[1768840278672,4.77693972,133.73,133.7,1.956145]
[1768840279662,4.77693972,133.73,133.7,9.43544345]
[1768840279861,2.94723294,133.73,133.71,1.756145]
[1768840280063,1.82970678,133.74,133.71,1.756145]
[1768840280265,38.07683894,133.77,133.72,1.756145]
[1768840280266,9.30591734,133.76,133.72,1.756145]
[1768840280461,12.31315027,133.76,133.72,1.756145]
[1768840280663,9.30591734,133.76,133.72,1.756145]
[1768840280976,12.31315027,133.76,133.72,1.756145]
[1768840281477,9.30591734,133.76,133.72,1.756145]
[1768840281960,9.30545514,133.77,133.73,1.756145]
[1768840282167,12.31268807,133.77,133.73,9.23377207]
[1768840282365,12.31268807,133.77,133.74,1.756145]
[1768840282665,12.31159042,133.79,133.75,1.756145]
[1768840282860,12.31159042,133.79,133.75,3.00723293]
[1768840282861,1.82970678,133.79,133.75,3.00723293]
[1768840283075,1.82970678,133.79,133.76,1.73300289]
[1768840285885,1.85885919,133.8,133.77,1.73300289]
[1768840286579,1.85885919,133.81,133.78,1.73300289]
[1768840287683,9.33190972,133.82,133.78,1.73300289]
[1768840287870,9.33190972,133.82,133.79,1.73300289]
[1768840288767,9.3314408,133.83,133.8,1.73300289]
[1768840292374,9.3314408,133.83,133.8,4.73625212]
[1768840294081,1.85885919,133.82,133.8,1.73300289]
[1768840294284,9.3314408,133.83,133.8,4.73625212]
[1768840296576,1.85885919,133.82,133.8,3.00324923]
[1768840297082,9.3314408,133.83,133.8,4.73625212]
[1768840297391,1.85885919,133.82,133.79,4.73625212]
[1768840299094,1.85885919,133.82,133.79,12.2104696]
[1768840300592,1.85885919,133.82,133.8,1.8670014]
[1768840302005,7.47258161,133.83,133.8,1.8670014]
[1768840302190,9.2268627,133.83,133.8,1.8670014]
[1768840303789,38.06143851,133.85,133.8,1.8670014]
[1768840303997,7.47160789,133.84,133.81,1.8670014]
[1768840304192,9.22588898,133.84,133.81,1.8370014]
[1768840306291,1.75428109,133.84,133.81,9.31020076]
[1768840308074,9.22496584,133.86,133.82,1.8670014]
[1768840308388,1.75428109,133.85,133.82,1.8670014]
[1768840308587,1.75428109,133.85,133.82,4.87025063]
[1768840308975,9.22554067,133.85,133.82,1.8670014]
[1768840310882,1.75428109,133.84,133.81,1.8670014]
[1768840311287,1.75428109,133.84,133.8,9.34057047]
[1768840311795,1.75428109,133.84,133.81,1.8670014]
[1768840314104,9.22593185,133.84,133.81,1.8670014]
[1768840318418,1.84960081,133.83,133.81,1.8670014]
[1768840318615,1.84960081,133.85,133.81,1.8670014]
[1768840318916,1.84960081,133.84,133.81,1.8670014]
[1768840319813,7.47150336,133.85,133.81,1.8670014]
[1768840319993,9.32110417,133.85,133.81,1.8670014]
[1768840320824,9.32110417,133.85,133.82,1.80555383]
[1768840321403,1.84960081,133.85,133.82,1.80555383]
[1768840321606,1.84960081,133.86,133.83,1.80555383]
[1768840321908,1.84960081,133.86,133.83,4.80880306]
[1768840322987,9.3198447,133.87,133.84,1.80555383]
[1768840323189,9.3198447,133.87,133.84,1.77555385]
[1768840323604,1.84960081,133.86,133.83,3.00324923]
[1768840324218,0.1,133.88,133.84,3.00324923]
[1768840324416,0.1,133.88,133.85,3.00324923]
[1768840324592,1.84960081,133.87,133.83,10.47516719]
[1768840325112,1.84960081,133.87,133.84,1.80555383]
[1768840326415,9.3195459,133.87,133.84,1.80555383]
[1768840326585,1.84960081,133.87,133.84,1.80555383]
[1768840331217,1.84960081,133.85,133.81,4.80880306]
[1768840331423,1.84960081,133.85,133.82,1.80555383]
[1768840331809,1.84960081,133.85,133.82,9.27796846]
[1768840332625,1.84960081,133.85,133.82,12.28121769]
[1768840333927,1.84960081,133.84,133.8,73.78208836]
[1768840334236,1.84960081,133.84,133.81,1.80555383]
[1768840339737,1.84960081,133.83,133.8,1.80555383]
[1768840340338,1.84960081,133.82,133.79,9.27970767]
[1768840340839,1.84960081,133.82,133.79,1.80555383]
[1768840341034,1.84960081,133.82,133.79,9.27988517]
[1768840341247,10.47494731,133.84,133.8,1.80555383]
[1768840342449,10.47445822,133.85,133.81,1.80555383]
[1768840343250,1.87570624,133.84,133.81,1.80555383]
[1768840343438,1.87570624,133.85,133.82,1.8798505]
[1768840343831,9.34675975,133.85,133.82,1.8798505]
[1768840344741,1.87570624,133.84,133.81,9.35292038]
[1768840346949,4.87895547,133.85,133.82,1.8798505]
[1768840347147,1.87570624,133.85,133.82,1.8798505]
[1768840347646,9.34677471,133.85,133.82,1.8798505]
[1768840351231,1.87570624,133.84,133.81,1.8798505]
[1768840353231,9.34741006,133.84,133.81,1.8798505]
[1768840353853,9.34741006,133.84,133.79,80.86247671]
[1768840353854,1.87570624,133.83,133.79,61.5]
[1768840354155,1.87570624,133.81,133.79,61.5]
[1768840354460,1.87570624,133.8,133.77,68.9751401]
[1768840354636,1.81974346,133.8,133.77,70.21042538]
[1768840354833,1.81974346,133.8,133.77,1.23528528]
[1768840355333,18.67901972,133.84,133.79,1.23528464]
[1768840355533,3.00247671,133.83,133.79,1.23528464]
[1768840355954,3.00247671,133.82,133.78,1.235284]
[1768840356337,10.47540416,133.82,133.78,1.235284]
[1768840356658,1.87570624,133.81,133.78,8.71022662]
[1768840359552,1.87570624,133.81,133.78,1.235284]
[1768840360167,4.87818295,133.81,133.77,70.20953763]
[1768840360366,1.84883903,133.8,133.77,70.20953763]
[1768840360553,4.85131574,133.81,133.77,70.20953763]
[1768840360753,4.85131574,133.81,133.78,7.47494481]
[1768840361167,1.84883903,133.81,133.77,70.20964662]
[1768840361353,1.84883903,133.78,133.75,8.70968718]
[1768840361554,4.79131575,133.78,133.75,8.70968718]
[1768840361755,1.78883904,133.78,133.75,27.40127596]
[1768840363561,3.00247671,133.79,133.75,27.40127596]
[1768840364069,23.83244176,133.83,133.76,1.76153467]
[1768840364260,3.00247671,133.8,133.76,1.76153467]
[1768840364769,3.00247671,133.82,133.77,1.76153467]
[1768840364964,18.67688142,133.86,133.78,27.92389076]
[1768840365170,3.00247671,133.82,133.79,1.76153467]
[1768840365371,4.85131574,133.82,133.79,1.76153467]
[1768840366477,4.85131574,133.82,133.8,7.47384155]
[1768840367478,1.84883903,133.82,133.8,7.47384155]
[1768840367666,72.09057132,133.88,133.81,1.76153467]
[1768840367667,7.46993351,133.87,133.81,1.76153467]
[1768840367874,3.00247671,133.84,133.81,1.76153467]
[1768840368673,3.00247671,133.84,133.81,7.47322132]
[1768840369858,4.85131574,133.84,133.81,7.47322132]
[1768840370480,1.84883903,133.84,133.81,9.23475599]
[1768840370671,4.85131574,133.84,133.81,9.23475599]
[1768840373378,1.84883903,133.84,133.81,9.23475599]
[1768840373676,4.85131574,133.84,133.81,9.23475599]
[1768840374177,4.85131574,133.84,133.81,1.76153467]
[1768840374676,1.83644174,133.83,133.8,9.24992232]
[1768840376980,4.83891845,133.84,133.81,1.77635747]
[1768840377159,4.83891845,133.84,133.81,1.74635747]
[1768840380185,12.31055265,133.84,133.81,1.74635747]
[1768840380378,1.83644174,133.83,133.81,1.74635747]
[1768840380578,4.83891845,133.82,133.79,9.25047108]
[1768840381886,4.83891845,133.82,133.8,1.77635747]
[1768840382184,1.83644174,133.82,133.8,1.77635747]
[1768840382381,4.83891845,133.82,133.79,9.25047108]
[1768840382572,4.83891845,133.82,133.79,1.77635747]
[1768840382989,1.83644174,133.82,133.79,1.77635747]
[1768840383287,1.83644174,133.82,133.79,9.25074276]
[1768840384201,1.83644174,133.82,133.8,1.77635747]
[1768840385876,3.00247671,133.83,133.8,1.77635747]
[1768840386080,1.83644174,133.82,133.79,1.77635747]
[1768840386379,4.83891845,133.82,133.79,1.77635747]
[1768840389487,12.31183379,133.82,133.79,1.77635747]
[1768840390196,9.30842294,133.84,133.8,1.77635747]
[1768840390491,12.31089965,133.84,133.8,1.77635747]
[1768840393494,9.30842294,133.84,133.8,1.77635747]
[1768840393696,9.30842294,133.84,133.81,1.77635747]
[1768840394784,12.31089965,133.84,133.81,1.77635747]
[1768840396288,30.98991937,133.84,133.81,1.77635747]
[1768840396488,30.98991937,133.84,133.81,31.77635747]
[1768840397696,1.83644174,133.83,133.81,30.0]
[1768840397893,1.83644174,133.82,133.79,63.27635747]
[1768840398390,7.47328301,133.81,133.79,63.27635747]
[1768840398589,7.47328301,133.81,133.79,1.77635747]
[1768840400303,7.47328301,133.81,133.8,30.0]
[1768840400782,7.47328301,133.81,133.79,1.77635747]
[1768840401177,9.30972475,133.81,133.78,1.77635747]
[1768840401800,7.47328301,133.81,133.78,1.77635747]
[1768840402500,9.30972475,133.81,133.78,1.77635747]
[1768840402995,1.8647125,133.8,133.77,1.77402474]
[1768840403210,4.86718921,133.79,133.76,1.77402474]
[1768840403397,1.8647125,133.79,133.76,1.77402474]
[1768840403701,4.86718921,133.79,133.76,1.77402474]
[1768840404402,28.02120304,133.81,133.77,1.77402474]
[1768840404608,31.02367975,133.81,133.78,1.77402474]
[1768840405405,12.34047222,133.81,133.78,1.77402474]
[1768840405903,9.33799551,133.81,133.78,1.77402474]
[1768840406108,12.34047222,133.81,133.78,1.77402474]
[1768840406287,9.33799551,133.81,133.78,1.77402474]
[1768840408691,9.33799551,133.81,133.78,31.77402474]
[1768840409203,12.34019058,133.82,133.79,1.77402474]
[1768840409404,9.33632039,133.84,133.79,7.47433448]
[1768840409719,9.33632039,133.84,133.79,40.47681119]
[1768840410018,4.86718921,133.84,133.79,40.47681119]
[1768840410406,1.8647125,133.84,133.8,3.00247671]
[1768840410788,12.33789438,133.86,133.81,3.00247671]
[1768840411402,12.33789438,133.86,133.82,1.77402474]
[1768840411889,12.33789438,133.86,133.82,31.77402474]
[1768840412104,1.8647125,133.85,133.82,31.77402474]
[1768840415012,12.33784906,133.86,133.83,1.77402474]
[1768840415713,12.33732321,133.87,133.84,1.77402474]
[1768840415901,12.33732321,133.87,133.84,1.74402477]
[1768840416410,9.33489182,133.87,133.84,1.74402477]
[1768840416592,12.33732321,133.87,133.84,1.74402477]
[1768840416798,1.8647125,133.87,133.84,1.74402477]
[1768840417100,1.8647125,133.87,133.84,4.74645616]
[1768840418609,9.33474271,133.87,133.84,4.74645616]
[1768840421514,9.20862371,133.87,133.84,4.74645616]
[1768840424915,0.1,133.88,133.86,1.71062932]
[1768840425122,8.36955629,133.9,133.87,1.71062932]
[1768840429626,1.70105974,133.88,133.84,4.71306071]
[1768840429807,1.70105974,133.88,133.85,1.71062932]
[1768840430224,9.16994797,133.89,133.85,1.71062932]
[1768840430426,12.17237936,133.89,133.85,1.71062932]
[1768840430613,1.70105974,133.88,133.85,1.71062932]
[1768840433207,1.76916072,133.87,133.84,1.71534744]
[1768840436318,1.76916072,133.87,133.84,4.71777883]
[1768840437135,12.23880603,133.88,133.85,1.71534744]
[1768840437328,1.76688388,133.89,133.86,1.71534744]
[1768840437528,1.76688388,133.89,133.86,4.71777883]